[Event "Titled Tuesday Blitz December 7 2021"]
[White "Vypkhaniuk, Ihor"]
[Black "Bortnyk, Olexandr"]
[WhiteFideId "14112256"]
[BlackFideId "14120828"]
[WhiteElo "2327"]
[BlackElo "2723"]
[Result "0-1"]
[Round "05"]
[TimeControl "180+1"]
[Date "2021.12.07"]
[WhiteClock "0:00:01"]
[BlackClock "0:00:34"]

1. d4 {[%clk 0:03:00]}  d6 {[%clk 0:02:58]} 2. Nf3 {[%clk 0:02:52]}  Nf6 {[%clk 0:02:57]} 3. c4 {[%clk 0:02:47]}  g6 {[%clk 0:02:55]} 4. Nc3 {[%clk 0:02:48]}  Bf5 {[%clk 0:02:49]} 5. Nh4 {[%clk 0:02:42]}  Bd7 {[%clk 0:02:48]} 6. Nf3 {[%clk 0:02:42]}  Bg7 {[%clk 0:02:40]} 7. e4 {[%clk 0:02:43]}  O-O {[%clk 0:02:40]} 8. Be2 {[%clk 0:02:43]}  a6 {[%clk 0:02:38]} 9. O-O {[%clk 0:02:32]}  b5 {[%clk 0:02:30]} 10. e5 {[%clk 0:02:20]}  dxe5 {[%clk 0:02:29]} 11. Nxe5 {[%clk 0:01:41]}  b4 {[%clk 0:02:28]} 12. Bf3 {[%clk 0:01:32]}  Ra7 {[%clk 0:02:18]} 13. Ne2 {[%clk 0:01:29]}  Qc8 {[%clk 0:02:04]} 14. Be3 {[%clk 0:01:25]}  Ng4 {[%clk 0:01:52]} 15. Nxg4 {[%clk 0:01:09]}  Bxg4 {[%clk 0:01:53]} 16. Bxg4 {[%clk 0:01:09]}  Qxg4 {[%clk 0:01:52]} 17. d5 {[%clk 0:01:07]}  Rb7 {[%clk 0:01:51]} 18. Bd4 {[%clk 0:01:07]}  e5 {[%clk 0:01:29]} 19. dxe6 {[%clk 0:01:00]}  Qxe6 {[%clk 0:01:28]} 20. Bxg7 {[%clk 0:00:56]}  Kxg7 {[%clk 0:01:29]} 21. Qd4+ {[%clk 0:00:52]}  Qf6 {[%clk 0:01:29]} 22. Rad1 {[%clk 0:00:49]}  Qxd4 {[%clk 0:01:27]} 23. Nxd4 {[%clk 0:00:48]}  c5 {[%clk 0:01:16]} 24. Nb3 {[%clk 0:00:46]}  Nd7 {[%clk 0:01:17]} 25. Rd5 {[%clk 0:00:43]}  Rc7 {[%clk 0:01:14]} 26. Rfd1 {[%clk 0:00:41]}  Re8 {[%clk 0:01:13]} 27. Kf1 {[%clk 0:00:38]}  Nb6 {[%clk 0:01:13]} 28. Rxc5 {[%clk 0:00:34]}  Rce7 {[%clk 0:01:06]} 29. Rc6 {[%clk 0:00:22]}  Na4 {[%clk 0:01:05]} 30. Rxa6 {[%clk 0:00:21]}  Nxb2 {[%clk 0:01:05]} 31. Rb1 {[%clk 0:00:19]}  Nd3 {[%clk 0:00:58]} 32. g3 {[%clk 0:00:07]}  Re2 {[%clk 0:00:58]} 33. Kg1 {[%clk 0:00:05]}  Nxf2 {[%clk 0:00:56]} 34. Rf1 {[%clk 0:00:03]}  Nh3+ {[%clk 0:00:43]} 35. Kh1 {[%clk 0:00:03]}  R8e7 {[%clk 0:00:44]} 36. Nd4 {[%clk 0:00:02]}  Rb2 {[%clk 0:00:39]} 37. Raf6 {[%clk 0:00:02]}  Rxa2 {[%clk 0:00:35]} 38. c5 {[%clk 0:00:02]}  Rd2 {[%clk 0:00:34]} 39. Nc6 {[%clk 0:00:01]}  Ree2 {[%clk 0:00:33]} 40. Rxf7+ {[%clk 0:00:01]}  Kh6 {[%clk 0:00:34]} 0-1


[Site "https://www.chess.com"]

[Event "Titled Tuesday Blitz December 7 2021"]
[White "Weetik, Vjacheslav"]
[Black "Wadsworth, Matthew J"]
[WhiteFideId "4153472"]
[BlackFideId "415804"]
[WhiteElo "2469"]
[BlackElo "2293"]
[Result "0-1"]
[Round "05"]
[TimeControl "180+1"]
[Date "2021.12.07"]
[WhiteClock "0:00:03"]
[BlackClock "0:00:14"]

1. d4 {[%clk 0:02:58]}  Nf6 {[%clk 0:02:58]} 2. Bf4 {[%clk 0:02:58]}  c5 {[%clk 0:02:58]} 3. e3 {[%clk 0:02:58]}  Qb6 {[%clk 0:02:57]} 4. Na3 {[%clk 0:02:53]}  d6 {[%clk 0:02:55]} 5. Nc4 {[%clk 0:02:45]}  Qc7 {[%clk 0:02:54]} 6. a4 {[%clk 0:02:40]}  Be6 {[%clk 0:02:49]} 7. b3 {[%clk 0:02:03]}  Nbd7 {[%clk 0:02:43]} 8. Nf3 {[%clk 0:02:02]}  Nb6 {[%clk 0:02:33]} 9. Nxb6 {[%clk 0:01:48]}  Qxb6 {[%clk 0:02:33]} 10. Bb5+ {[%clk 0:01:40]}  Bd7 {[%clk 0:02:32]} 11. Bc4 {[%clk 0:01:37]}  g6 {[%clk 0:02:08]} 12. O-O {[%clk 0:01:34]}  Bg7 {[%clk 0:02:08]} 13. h3 {[%clk 0:01:22]}  O-O {[%clk 0:02:07]} 14. a5 {[%clk 0:01:17]}  Qc7 {[%clk 0:02:05]} 15. Re1 {[%clk 0:01:05]}  b5 {[%clk 0:02:03]} 16. axb6 {[%clk 0:01:03]}  axb6 {[%clk 0:02:03]} 17. Rxa8 {[%clk 0:01:02]}  Rxa8 {[%clk 0:02:03]} 18. Qd3 {[%clk 0:00:53]}  Qb7 {[%clk 0:01:27]} 19. Bb5 {[%clk 0:00:42]}  Bxb5 {[%clk 0:01:21]} 20. Qxb5 {[%clk 0:00:43]}  Nd5 {[%clk 0:01:16]} 21. Bg3 {[%clk 0:00:39]}  Nc3 {[%clk 0:01:02]} 22. Qd3 {[%clk 0:00:38]}  Ne4 {[%clk 0:01:01]} 23. Bh4 {[%clk 0:00:34]}  d5 {[%clk 0:00:45]} 24. c4 {[%clk 0:00:30]}  e6 {[%clk 0:00:44]} 25. Nd2 {[%clk 0:00:22]}  Nxd2 {[%clk 0:00:41]} 26. Qxd2 {[%clk 0:00:22]}  dxc4 {[%clk 0:00:35]} 27. bxc4 {[%clk 0:00:22]}  cxd4 {[%clk 0:00:36]} 28. exd4 {[%clk 0:00:22]}  Qc6 {[%clk 0:00:35]} 29. Qd3 {[%clk 0:00:17]}  Rc8 {[%clk 0:00:30]} 30. Rc1 {[%clk 0:00:05]}  Qd6 {[%clk 0:00:19]} 31. Rd1 {[%clk 0:00:04]}  Qc7 {[%clk 0:00:14]} 32. Rc1 {[%clk 0:00:03]}  Qf4 {[%clk 0:00:14]} 0-1


[Site "https://www.chess.com"]

[Event "Titled Tuesday Blitz December 7 2021"]
[White "Yurovskykh, Oleksandr"]
[Black "Krivonosov, Oleg"]
[WhiteFideId "14134020"]
[BlackFideId "11600349"]
[WhiteElo "2292"]
[BlackElo "2469"]
[Result "1-0"]
[Round "05"]
[TimeControl "180+1"]
[Date "2021.12.07"]
[WhiteClock "0:00:16"]
[BlackClock "0:00:11"]

1. d4 {[%clk 0:02:55]}  d5 {[%clk 0:02:59]} 2. Bf4 {[%clk 0:02:54]}  Nf6 {[%clk 0:02:58]} 3. e3 {[%clk 0:02:54]}  e6 {[%clk 0:02:57]} 4. Nd2 {[%clk 0:02:51]}  c5 {[%clk 0:02:56]} 5. c3 {[%clk 0:02:50]}  Bd6 {[%clk 0:02:56]} 6. Bg3 {[%clk 0:02:47]}  Nc6 {[%clk 0:02:55]} 7. Ngf3 {[%clk 0:02:40]}  O-O {[%clk 0:02:54]} 8. Bb5 {[%clk 0:02:40]}  Ne7 {[%clk 0:02:46]} 9. Bd3 {[%clk 0:02:32]}  b6 {[%clk 0:02:45]} 10. e4 {[%clk 0:02:22]}  Bxg3 {[%clk 0:02:09]} 11. hxg3 {[%clk 0:02:13]}  h6 {[%clk 0:02:09]} 12. e5 {[%clk 0:02:12]}  Ne8 {[%clk 0:02:01]} 13. g4 {[%clk 0:02:12]}  Ng6 {[%clk 0:01:56]} 14. g3 {[%clk 0:02:00]}  cxd4 {[%clk 0:01:51]} 15. cxd4 {[%clk 0:01:55]}  a5 {[%clk 0:01:49]} 16. Qe2 {[%clk 0:01:46]}  Nc7 {[%clk 0:01:45]} 17. Qe3 {[%clk 0:01:24]}  Ba6 {[%clk 0:01:40]} 18. Bxa6 {[%clk 0:01:18]}  Nxa6 {[%clk 0:01:41]} 19. a3 {[%clk 0:01:14]}  f6 {[%clk 0:01:23]} 20. O-O {[%clk 0:01:03]}  fxe5 {[%clk 0:01:17]} 21. Nxe5 {[%clk 0:01:03]}  Nxe5 {[%clk 0:01:16]} 22. Qxe5 {[%clk 0:01:04]}  Qf6 {[%clk 0:01:13]} 23. Rae1 {[%clk 0:01:02]}  Qxe5 {[%clk 0:01:02]} 24. Rxe5 {[%clk 0:01:03]}  Rfe8 {[%clk 0:00:58]} 25. Rfe1 {[%clk 0:01:01]}  Kf7 {[%clk 0:00:56]} 26. Nb1 {[%clk 0:01:01]}  Nb8 {[%clk 0:00:52]} 27. Rc1 {[%clk 0:00:57]}  Nd7 {[%clk 0:00:51]} 28. Re2 {[%clk 0:00:55]}  Rac8 {[%clk 0:00:49]} 29. Rec2 {[%clk 0:00:56]}  Rxc2 {[%clk 0:00:48]} 30. Rxc2 {[%clk 0:00:57]}  e5 {[%clk 0:00:48]} 31. Nc3 {[%clk 0:00:26]}  Nf6 {[%clk 0:00:41]} 32. dxe5 {[%clk 0:00:23]}  Rxe5 {[%clk 0:00:42]} 33. Rd2 {[%clk 0:00:24]}  Ke6 {[%clk 0:00:34]} 34. f3 {[%clk 0:00:24]}  h5 {[%clk 0:00:29]} 35. gxh5 {[%clk 0:00:21]}  Rxh5 {[%clk 0:00:28]} 36. Ne2 {[%clk 0:00:20]}  Kd6 {[%clk 0:00:25]} 37. Nd4 {[%clk 0:00:18]}  Re5 {[%clk 0:00:20]} 38. Kf2 {[%clk 0:00:18]}  g5 {[%clk 0:00:18]} 39. g4 {[%clk 0:00:18]}  Kc5 {[%clk 0:00:16]} 40. Nf5 {[%clk 0:00:16]}  Re8 {[%clk 0:00:11]} 41. Rc2+ {[%clk 0:00:16]} 1-0


[Site "https://www.chess.com"]

[Event "Titled Tuesday Blitz December 7 2021"]
[White "Zhuravleva, Olga"]
[Black "Nazaretyan, Tigran"]
[WhiteFideId "4145933"]
[BlackFideId "24162345"]
[WhiteElo "2119"]
[BlackElo "2192"]
[Result "1-0"]
[Round "05"]
[TimeControl "180+1"]
[Date "2021.12.07"]
[WhiteClock "0:00:34"]
[BlackClock "0:00:13"]

1. e4 {[%clk 0:02:55]}  c5 {[%clk 0:02:59]} 2. Nf3 {[%clk 0:02:53]}  Nc6 {[%clk 0:02:57]} 3. Nc3 {[%clk 0:02:51]}  d6 {[%clk 0:02:57]} 4. d4 {[%clk 0:02:51]}  cxd4 {[%clk 0:02:57]} 5. Nxd4 {[%clk 0:02:46]}  Nf6 {[%clk 0:02:56]} 6. Nb3 {[%clk 0:02:46]}  e5 {[%clk 0:02:48]} 7. Bd3 {[%clk 0:02:45]}  Be7 {[%clk 0:02:47]} 8. O-O {[%clk 0:02:44]}  O-O {[%clk 0:02:46]} 9. Kh1 {[%clk 0:02:43]}  a5 {[%clk 0:02:38]} 10. a3 {[%clk 0:02:39]}  a4 {[%clk 0:02:35]} 11. Nd2 {[%clk 0:02:39]}  Nd4 {[%clk 0:02:20]} 12. Nc4 {[%clk 0:02:31]}  Bg4 {[%clk 0:02:09]} 13. f3 {[%clk 0:02:31]}  Be6 {[%clk 0:02:09]} 14. Ne3 {[%clk 0:02:29]}  Qd7 {[%clk 0:01:55]} 15. Qe1 {[%clk 0:02:17]}  Rfc8 {[%clk 0:01:47]} 16. Bd2 {[%clk 0:02:14]}  b5 {[%clk 0:01:45]} 17. Rd1 {[%clk 0:02:11]}  Qb7 {[%clk 0:01:44]} 18. Bc1 {[%clk 0:02:06]}  Kh8 {[%clk 0:01:38]} 19. f4 {[%clk 0:01:41]}  b4 {[%clk 0:01:33]} 20. axb4 {[%clk 0:01:37]}  Qxb4 {[%clk 0:01:33]} 21. fxe5 {[%clk 0:01:28]}  dxe5 {[%clk 0:01:32]} 22. Ned5 {[%clk 0:01:28]}  Nxd5 {[%clk 0:01:22]} 23. exd5 {[%clk 0:01:28]}  Bg4 {[%clk 0:01:22]} 24. Rxf7 {[%clk 0:01:15]}  Bxd1 {[%clk 0:01:17]} 25. Qxe5 {[%clk 0:01:13]}  Bf6 {[%clk 0:00:36]} 26. Qe4 {[%clk 0:01:00]}  Kg8 {[%clk 0:00:33]} 27. Rxf6 {[%clk 0:00:55]}  gxf6 {[%clk 0:00:33]} 28. Qxh7+ {[%clk 0:00:54]}  Kf8 {[%clk 0:00:34]} 29. Bg6 {[%clk 0:00:36]}  Ra7 {[%clk 0:00:13]} 30. Bh6+ {[%clk 0:00:34]} 1-0


[Site "https://www.chess.com"]

[Event "Titled Tuesday Blitz December 7 2021"]
[White "Andreikin, Dmitry"]
[Black "Holt, Conrad"]
[WhiteFideId "4158814"]
[BlackFideId "2034387"]
[WhiteElo "2736"]
[BlackElo "2586"]
[Result "0-1"]
[Round "06"]
[TimeControl "180+1"]
[Date "2021.12.07"]
[WhiteClock "0:00:02"]
[BlackClock "0:00:19"]

1. e4 {[%clk 0:03:00]}  e6 {[%clk 0:03:00]} 2. d4 {[%clk 0:03:00]}  d5 {[%clk 0:03:00]} 3. exd5 {[%clk 0:02:55]}  exd5 {[%clk 0:03:00]} 4. Nf3 {[%clk 0:02:56]}  Bd6 {[%clk 0:02:59]} 5. Bd3 {[%clk 0:02:54]}  Nc6 {[%clk 0:02:58]} 6. c3 {[%clk 0:02:53]}  Bg4 {[%clk 0:02:58]} 7. O-O {[%clk 0:02:46]}  Nge7 {[%clk 0:02:56]} 8. Re1 {[%clk 0:02:41]}  Qd7 {[%clk 0:02:55]} 9. Nbd2 {[%clk 0:02:41]}  O-O-O {[%clk 0:02:53]} 10. b4 {[%clk 0:02:41]}  Ng6 {[%clk 0:02:52]} 11. Nb3 {[%clk 0:02:28]}  Rde8 {[%clk 0:02:42]} 12. Be3 {[%clk 0:02:24]}  Nce7 {[%clk 0:02:20]} 13. Nc5 {[%clk 0:02:10]}  Bxc5 {[%clk 0:02:20]} 14. dxc5 {[%clk 0:02:03]}  Nf5 {[%clk 0:02:15]} 15. c6 {[%clk 0:01:17]}  bxc6 {[%clk 0:01:58]} 16. Qa4 {[%clk 0:01:01]}  Nxe3 {[%clk 0:01:50]} 17. Qxa7 {[%clk 0:01:00]}  Kd8 {[%clk 0:01:32]} 18. Ng5 {[%clk 0:00:35]}  Re5 {[%clk 0:01:08]} 19. Bxg6 {[%clk 0:00:24]}  Rxg5 {[%clk 0:01:00]} 20. Bxf7 {[%clk 0:00:13]}  Qxf7 {[%clk 0:00:50]} 21. Qxe3 {[%clk 0:00:12]}  Rg6 {[%clk 0:00:47]} 22. Kh1 {[%clk 0:00:09]}  Re8 {[%clk 0:00:37]} 23. Qg3 {[%clk 0:00:09]}  Bd7 {[%clk 0:00:33]} 24. Qh4+ {[%clk 0:00:08]}  Kc8 {[%clk 0:00:31]} 25. f3 {[%clk 0:00:09]}  Qf6 {[%clk 0:00:27]} 26. Qf2 {[%clk 0:00:04]}  Kb7 {[%clk 0:00:22]} 27. h3 {[%clk 0:00:03]}  Qxc3 {[%clk 0:00:21]} 28. a4 {[%clk 0:00:03]}  Rge6 {[%clk 0:00:20]} 29. Rec1 {[%clk 0:00:02]}  Qe3 {[%clk 0:00:20]} 30. Qb2 {[%clk 0:00:02]}  Rh6 {[%clk 0:00:19]} 0-1


[Site "https://www.chess.com"]

[Event "Titled Tuesday Blitz December 7 2021"]
[White "Arencibia Monduy, Antonio"]
[Black "Faizrakhmanov, Ramil"]
[WhiteFideId "3507939"]
[BlackFideId "24103209"]
[WhiteElo "2611"]
[BlackElo "2396"]
[Result "1-0"]
[Round "06"]
[TimeControl "180+1"]
[Date "2021.12.07"]
[WhiteClock "0:02:05"]
[BlackClock "0:01:38"]

1. c4 {[%clk 0:03:00]}  Nf6 {[%clk 0:02:59]} 2. Nf3 {[%clk 0:03:01]}  g6 {[%clk 0:02:59]} 3. g3 {[%clk 0:03:01]}  Bg7 {[%clk 0:02:59]} 4. Bg2 {[%clk 0:03:01]}  O-O {[%clk 0:03:00]} 5. O-O {[%clk 0:03:00]}  d6 {[%clk 0:03:01]} 6. Nc3 {[%clk 0:02:59]}  Nc6 {[%clk 0:03:01]} 7. b3 {[%clk 0:02:59]}  e5 {[%clk 0:03:00]} 8. Bb2 {[%clk 0:02:54]}  h6 {[%clk 0:03:00]} 9. d3 {[%clk 0:02:54]}  Be6 {[%clk 0:03:00]} 10. e3 {[%clk 0:02:48]}  Qd7 {[%clk 0:02:58]} 11. Re1 {[%clk 0:02:47]}  Bh3 {[%clk 0:02:56]} 12. Bh1 {[%clk 0:02:44]}  Rae8 {[%clk 0:02:52]} 13. a3 {[%clk 0:02:42]}  a5 {[%clk 0:02:51]} 14. d4 {[%clk 0:02:36]}  Bg4 {[%clk 0:02:46]} 15. d5 {[%clk 0:02:31]}  e4 {[%clk 0:02:40]} 16. dxc6 {[%clk 0:02:29]}  bxc6 {[%clk 0:02:41]} 17. Nxe4 {[%clk 0:02:27]}  Nxe4 {[%clk 0:02:32]} 18. Bxg7 {[%clk 0:02:26]}  Kxg7 {[%clk 0:02:33]} 19. Qc2 {[%clk 0:02:24]}  Qe7 {[%clk 0:02:26]} 20. Nd2 {[%clk 0:02:20]}  Nxd2 {[%clk 0:02:20]} 21. Qxd2 {[%clk 0:02:20]}  Rb8 {[%clk 0:02:13]} 22. Qd4+ {[%clk 0:02:15]}  Kg8 {[%clk 0:02:00]} 23. Qxg4 {[%clk 0:02:15]}  Rxb3 {[%clk 0:02:00]} 24. Bxc6 {[%clk 0:02:13]}  Rfb8 {[%clk 0:01:56]} 25. Bd5 {[%clk 0:02:13]}  Rb2 {[%clk 0:01:53]} 26. Qxg6+ {[%clk 0:02:13]}  Kh8 {[%clk 0:01:49]} 27. Qxh6+ {[%clk 0:02:13]}  Kg8 {[%clk 0:01:49]} 28. Rad1 {[%clk 0:02:10]}  c5 {[%clk 0:01:38]} 29. e4 {[%clk 0:02:05]} 1-0


[Site "https://www.chess.com"]

[Event "Titled Tuesday Blitz December 7 2021"]
[White "Atakhan, Abtin"]
[Black "Xie, Bryan"]
[WhiteFideId "22502203"]
[BlackFideId "30941296"]
[WhiteElo "2119"]
[BlackElo "1899"]
[Result "1-0"]
[Round "06"]
[TimeControl "180+1"]
[Date "2021.12.07"]
[WhiteClock "0:01:09"]
[BlackClock "0:00:06"]

1. e4 {[%clk 0:03:00]}  c5 {[%clk 0:02:59]} 2. Nc3 {[%clk 0:03:00]}  Nc6 {[%clk 0:02:59]} 3. Bb5 {[%clk 0:03:00]}  Nd4 {[%clk 0:02:58]} 4. Nf3 {[%clk 0:03:01]}  g6 {[%clk 0:02:57]} 5. O-O {[%clk 0:03:00]}  Bg7 {[%clk 0:02:57]} 6. Nxd4 {[%clk 0:02:59]}  cxd4 {[%clk 0:02:57]} 7. Ne2 {[%clk 0:02:59]}  a6 {[%clk 0:02:56]} 8. Bd3 {[%clk 0:02:59]}  d5 {[%clk 0:02:53]} 9. c3 {[%clk 0:02:48]}  dxe4 {[%clk 0:02:39]} 10. Bxe4 {[%clk 0:02:49]}  Nf6 {[%clk 0:02:37]} 11. Bf3 {[%clk 0:02:44]}  d3 {[%clk 0:02:36]} 12. Nd4 {[%clk 0:02:43]}  e5 {[%clk 0:02:35]} 13. Re1 {[%clk 0:02:43]}  Qd6 {[%clk 0:02:05]} 14. Qa4+ {[%clk 0:02:38]}  Bd7 {[%clk 0:01:49]} 15. Qa5 {[%clk 0:02:39]}  O-O {[%clk 0:01:25]} 16. Nb3 {[%clk 0:02:19]}  e4 {[%clk 0:01:15]} 17. Bd1 {[%clk 0:02:07]}  b6 {[%clk 0:00:56]} 18. Qg5 {[%clk 0:02:06]}  Rfe8 {[%clk 0:00:50]} 19. Nd4 {[%clk 0:02:02]}  Nd5 {[%clk 0:00:43]} 20. b4 {[%clk 0:01:45]}  Be5 {[%clk 0:00:32]} 21. Qh4 {[%clk 0:01:42]}  b5 {[%clk 0:00:20]} 22. Bb3 {[%clk 0:01:36]}  Nf4 {[%clk 0:00:16]} 23. Bb2 {[%clk 0:01:28]}  Bxd4 {[%clk 0:00:15]} 24. cxd4 {[%clk 0:01:27]}  Ne2+ {[%clk 0:00:16]} 25. Kh1 {[%clk 0:01:26]}  Nxd4 {[%clk 0:00:11]} 26. Rxe4 {[%clk 0:01:23]}  Nxb3 {[%clk 0:00:10]} 27. Qxh7+ {[%clk 0:01:20]}  Kf8 {[%clk 0:00:09]} 28. Rh4 {[%clk 0:01:20]}  Nxd2 {[%clk 0:00:07]} 29. Qh6+ {[%clk 0:01:11]}  Ke7 {[%clk 0:00:07]} 30. Qg5+ {[%clk 0:01:10]}  Kf8 {[%clk 0:00:06]} 31. Rh8# {[%clk 0:01:09]} 1-0


[Site "https://www.chess.com"]

[Event "Titled Tuesday Blitz December 7 2021"]
[White "Azadaliyev, Jahandar"]
[Black "Walter, Szymon"]
[WhiteFideId "13425811"]
[BlackFideId "1172590"]
[WhiteElo "1795"]
[BlackElo "2227"]
[Result "1-0"]
[Round "06"]
[TimeControl "180+1"]
[Date "2021.12.07"]
[WhiteClock "0:00:11"]
[BlackClock "0:00:11"]

1. d4 {[%clk 0:03:00]}  d6 {[%clk 0:02:46]} 2. Nf3 {[%clk 0:02:59]}  Nf6 {[%clk 0:02:43]} 3. g3 {[%clk 0:02:59]}  g6 {[%clk 0:02:42]} 4. Bg2 {[%clk 0:02:59]}  Bg7 {[%clk 0:02:42]} 5. O-O {[%clk 0:02:59]}  O-O {[%clk 0:02:43]} 6. c4 {[%clk 0:02:59]}  Nc6 {[%clk 0:02:43]} 7. Nc3 {[%clk 0:03:00]}  Bg4 {[%clk 0:02:42]} 8. Bg5 {[%clk 0:02:59]}  h6 {[%clk 0:02:34]} 9. Bc1 {[%clk 0:02:51]}  Bxf3 {[%clk 0:02:32]} 10. Bxf3 {[%clk 0:02:51]}  Nd7 {[%clk 0:02:32]} 11. e3 {[%clk 0:02:49]}  e5 {[%clk 0:02:32]} 12. d5 {[%clk 0:02:42]}  Ne7 {[%clk 0:02:32]} 13. e4 {[%clk 0:02:42]}  f5 {[%clk 0:02:32]} 14. Be3 {[%clk 0:02:42]}  f4 {[%clk 0:02:32]} 15. Bd2 {[%clk 0:02:38]}  g5 {[%clk 0:02:27]} 16. Bg4 {[%clk 0:02:33]}  Nf6 {[%clk 0:02:24]} 17. Be6+ {[%clk 0:02:31]}  Kh8 {[%clk 0:02:25]} 18. b4 {[%clk 0:02:26]}  Ng6 {[%clk 0:02:21]} 19. c5 {[%clk 0:02:23]}  h5 {[%clk 0:02:20]} 20. Rc1 {[%clk 0:02:14]}  dxc5 {[%clk 0:02:13]} 21. bxc5 {[%clk 0:02:12]}  g4 {[%clk 0:02:11]} 22. Qb3 {[%clk 0:02:01]}  h4 {[%clk 0:02:08]} 23. Bf5 {[%clk 0:01:55]}  Ne7 {[%clk 0:02:02]} 24. Qxb7 {[%clk 0:01:40]}  Rb8 {[%clk 0:02:03]} 25. Qxa7 {[%clk 0:01:37]}  Nxf5 {[%clk 0:02:03]} 26. exf5 {[%clk 0:01:38]}  Nxd5 {[%clk 0:02:03]} 27. Rfd1 {[%clk 0:01:28]}  hxg3 {[%clk 0:02:01]} 28. hxg3 {[%clk 0:01:23]}  fxg3 {[%clk 0:02:01]} 29. fxg3 {[%clk 0:01:24]}  e4 {[%clk 0:01:19]} 30. Be3 {[%clk 0:00:59]}  c6 {[%clk 0:01:14]} 31. Nxd5 {[%clk 0:00:57]}  cxd5 {[%clk 0:01:15]} 32. c6 {[%clk 0:00:57]}  Ra8 {[%clk 0:00:57]} 33. Qd7 {[%clk 0:00:36]}  Rxa2 {[%clk 0:00:41]} 34. Qxd8 {[%clk 0:00:21]}  Rxd8 {[%clk 0:00:41]} 35. c7 {[%clk 0:00:21]}  Rc8 {[%clk 0:00:41]} 36. Rxd5 {[%clk 0:00:21]}  Bf6 {[%clk 0:00:40]} 37. Rd6 {[%clk 0:00:16]}  Kg7 {[%clk 0:00:38]} 38. Rd7+ {[%clk 0:00:13]}  Kg8 {[%clk 0:00:38]} 39. Rcd1 {[%clk 0:00:13]}  Raa8 {[%clk 0:00:28]} 40. Bd4 {[%clk 0:00:12]}  Bxd4+ {[%clk 0:00:22]} 41. R1xd4 {[%clk 0:00:13]}  e3 {[%clk 0:00:23]} 42. Rxg4+ {[%clk 0:00:12]}  Kf8 {[%clk 0:00:22]} 43. Re4 {[%clk 0:00:12]}  Re8 {[%clk 0:00:10]} 44. Rxe8+ {[%clk 0:00:11]}  Rxe8 {[%clk 0:00:10]} 45. Rd8 {[%clk 0:00:11]}  e2 {[%clk 0:00:11]} 46. Rxe8+ {[%clk 0:00:11]} 1-0


[Site "https://www.chess.com"]

[Event "Titled Tuesday Blitz December 7 2021"]
[White "Belyakov, Bogdan"]
[Black "Daniel, Damian"]
[WhiteFideId "24104795"]
[BlackFideId "1183621"]
[WhiteElo "2407"]
[BlackElo "2055"]
[Result "1-0"]
[Round "06"]
[TimeControl "180+1"]
[Date "2021.12.07"]
[WhiteClock "0:00:18"]
[BlackClock "0:00:06"]

1. e4 {[%clk 0:03:00]}  c5 {[%clk 0:03:00]} 2. c3 {[%clk 0:03:00]}  Nf6 {[%clk 0:02:58]} 3. e5 {[%clk 0:03:00]}  Nd5 {[%clk 0:02:59]} 4. d4 {[%clk 0:03:00]}  cxd4 {[%clk 0:03:00]} 5. cxd4 {[%clk 0:03:01]}  d6 {[%clk 0:03:00]} 6. Nf3 {[%clk 0:03:01]}  Nc6 {[%clk 0:02:55]} 7. Bc4 {[%clk 0:03:01]}  dxe5 {[%clk 0:02:51]} 8. dxe5 {[%clk 0:03:02]}  Nb6 {[%clk 0:02:51]} 9. Qxd8+ {[%clk 0:02:57]}  Nxd8 {[%clk 0:02:52]} 10. Be2 {[%clk 0:02:49]}  g6 {[%clk 0:02:45]} 11. Nc3 {[%clk 0:02:46]}  Bg7 {[%clk 0:02:44]} 12. Nb5 {[%clk 0:02:46]}  O-O {[%clk 0:02:42]} 13. Nc7 {[%clk 0:02:41]}  Rb8 {[%clk 0:02:41]} 14. Be3 {[%clk 0:02:41]}  Nc6 {[%clk 0:02:09]} 15. Bf4 {[%clk 0:02:16]}  Bg4 {[%clk 0:01:36]} 16. O-O {[%clk 0:02:16]}  Bxf3 {[%clk 0:01:25]} 17. Bxf3 {[%clk 0:02:17]}  Bxe5 {[%clk 0:01:24]} 18. Bxe5 {[%clk 0:02:11]}  Nxe5 {[%clk 0:01:25]} 19. Be2 {[%clk 0:02:11]}  a6 {[%clk 0:01:14]} 20. a4 {[%clk 0:02:01]}  e6 {[%clk 0:01:00]} 21. a5 {[%clk 0:02:01]}  Nbd7 {[%clk 0:00:58]} 22. b4 {[%clk 0:01:56]}  Rfc8 {[%clk 0:00:52]} 23. Rfc1 {[%clk 0:01:55]}  Nc6 {[%clk 0:00:47]} 24. b5 {[%clk 0:01:50]}  Nd4 {[%clk 0:00:39]} 25. Bf1 {[%clk 0:01:30]}  Nb3 {[%clk 0:00:38]} 26. b6 {[%clk 0:01:30]}  Nf6 {[%clk 0:00:28]} 27. Bc4 {[%clk 0:01:26]}  Nxa1 {[%clk 0:00:23]} 28. Rxa1 {[%clk 0:01:27]}  Rd8 {[%clk 0:00:23]} 29. Re1 {[%clk 0:01:20]}  Rd4 {[%clk 0:00:23]} 30. Bb3 {[%clk 0:01:17]}  Nd5 {[%clk 0:00:20]} 31. Bxd5 {[%clk 0:01:14]}  exd5 {[%clk 0:00:20]} 32. g3 {[%clk 0:01:13]}  Ra4 {[%clk 0:00:20]} 33. Nxd5 {[%clk 0:01:04]}  Rxa5 {[%clk 0:00:19]} 34. Nf6+ {[%clk 0:01:03]}  Kg7 {[%clk 0:00:18]} 35. Ne8+ {[%clk 0:01:03]}  Kf8 {[%clk 0:00:16]} 36. Nf6 {[%clk 0:01:03]}  Rc8 {[%clk 0:00:13]} 37. h4 {[%clk 0:01:02]}  h5 {[%clk 0:00:12]} 38. Kg2 {[%clk 0:00:58]}  Rb5 {[%clk 0:00:09]} 39. Re3 {[%clk 0:00:56]}  Kg7 {[%clk 0:00:09]} 40. Ne8+ {[%clk 0:00:55]}  Kf8 {[%clk 0:00:08]} 41. Nd6 {[%clk 0:00:55]}  Rc6 {[%clk 0:00:06]} 42. Nxb5 {[%clk 0:00:47]}  axb5 {[%clk 0:00:07]} 43. Rb3 {[%clk 0:00:47]}  Rxb6 {[%clk 0:00:07]} 44. Rb4 {[%clk 0:00:47]}  Ke7 {[%clk 0:00:08]} 45. Kf3 {[%clk 0:00:48]}  Kd6 {[%clk 0:00:08]} 46. Ke3 {[%clk 0:00:44]}  Kc5 {[%clk 0:00:08]} 47. Rf4 {[%clk 0:00:44]}  f6 {[%clk 0:00:08]} 48. Kd3 {[%clk 0:00:43]}  b4 {[%clk 0:00:08]} 49. Kc2 {[%clk 0:00:44]}  b3+ {[%clk 0:00:09]} 50. Kb2 {[%clk 0:00:43]}  Kd5 {[%clk 0:00:09]} 51. f3 {[%clk 0:00:35]}  Ke5 {[%clk 0:00:09]} 52. Re4+ {[%clk 0:00:35]}  Kf5 {[%clk 0:00:09]} 53. Rf4+ {[%clk 0:00:35]}  Ke6 {[%clk 0:00:09]} 54. Re4+ {[%clk 0:00:36]}  Kf7 {[%clk 0:00:09]} 55. Rd4 {[%clk 0:00:30]}  Rb5 {[%clk 0:00:09]} 56. Rc4 {[%clk 0:00:28]}  Ke6 {[%clk 0:00:09]} 57. Re4+ {[%clk 0:00:26]}  Kf7 {[%clk 0:00:09]} 58. Rc4 {[%clk 0:00:26]}  g5 {[%clk 0:00:09]} 59. Re4 {[%clk 0:00:22]}  Kg6 {[%clk 0:00:08]} 60. Rd4 {[%clk 0:00:20]}  Kf5 {[%clk 0:00:09]} 61. g4+ {[%clk 0:00:18]}  hxg4 {[%clk 0:00:06]} 62. Rxg4 {[%clk 0:00:18]} 1-0


[Site "https://www.chess.com"]